fUSD/lending_fUSD_20250904
["ID","MTS","AMOUNT","RATE_DAILY","PERIOD"]
[383598442,1757020245643,-204.59286513,0.00025679,3]
[383598443,1757020245655,-4.28678311,0.00025679,3]
[383598444,1757020245664,-3932.50527461,0.00025679,3]
[383598555,1757020657444,154.68,0.00013699,2]
[383598556,1757020806770,156.03,0.00012394,2]
[383598557,1757020807337,156.03,0.00016525,2]
[383598571,1757021108731,51242.74744128,0.0002,2]
[383598572,1757021126167,1010.60398388,0.000108,2]
[383598574,1757021137199,4278.77553925,9e-05,2]
[383598584,1757021256444,102752.65596332,0.00018,2]
[383598585,1757021273562,1405.18139391,0.00018,2]
[383598586,1757021277396,22894.76353254,0.0002,2]
[383598590,1757021431679,-156.03,0.00020657,2]
[383598591,1757021431688,-590.22,0.000221,2]
[383598592,1757021431699,-195.0,0.00022722,2]
[383598593,1757021431708,-666.0,0.00023457,3]
[383598594,1757021431718,-1449.6390331,0.000236,2]
[383598595,1757021431730,-50.3609669,0.000236,2]
[383598596,1757021431739,-167.53590468,0.000237,2]
[383598597,1757021431749,-328.72,0.00023726,2]
[383598598,1757021431759,-426.25282486,0.000238,2]
[383598599,1757021431770,-15.74717514,0.000238,2]
[383598600,1757021431780,-154.68,0.00023973,2]
[383598601,1757021431789,-150.0,0.00024,2]
[383598602,1757021431799,-330.61282485,0.00024,2]
[383598603,1757021431810,-259.60717515,0.00024,2]
[383598604,1757021431819,-1200.0,0.00024064,2]
[383598605,1757021431829,-965.0,0.00024065,2]
[383598606,1757021431840,-74.67129265,0.00024065,2]
[383598607,1757021431884,-167.82276239,0.00023599,2]
[383598608,1757021431894,-225.32870735,0.00024065,2]
[383598609,1757021431903,-150.0,0.00024066,4]
[383598610,1757021431913,-150.0,0.00024066,4]
[383598611,1757021431922,-60.83438727,0.00024066,4]
[383598612,1757021431987,-89.16561273,0.00024066,4]
[383598613,1757021431996,-150.0,0.00024066,4]
[383598614,1757021432005,-150.0,0.00024066,4]
[383598615,1757021432017,-150.0,0.00024066,4]
[383598616,1757021432034,-342.7231735,0.00024173,2]
[383598617,1757021432046,-757.2768265,0.00024173,2]
[383598618,1757021432055,-159.38380714,0.00024174,2]
[383598619,1757021432075,-1802.7996141,0.00024174,2]
[383598624,1757021432178,-972.72912491,0.00024174,2]
[383598628,1757021432190,-334.87745385,0.00024174,2]
[383598630,1757021432200,-1999.1778028,0.00024174,2]
[383598633,1757021432216,-1056.3221972,0.00024174,2]
[383598635,1757021432225,-1150.14513247,0.00024174,2]
[383598637,1757021432438,-4749.61824997,0.00024174,2]
[383598639,1757021437603,-1654.30661756,0.00024174,2]
[383598640,1757021437615,-150.99,0.00024174,2]
[383598641,1757021437625,-193.9,0.00024174,2]
[383598642,1757021437635,-999.99,0.00024174,2]
[383598643,1757021437646,-1207.24,0.00024174,2]
[383598644,1757021437656,-150.99,0.00024174,2]
[383598645,1757021437666,-250.0,0.00024313,2]
[383598646,1757021437678,-188.18,0.00024407,2]
[383598647,1757021437689,-1074.31560466,0.00024482,2]
[383598648,1757021437702,-1935.89568349,0.00024482,2]
[383598649,1757021437712,-1250.0,0.00024485,2]
[383598650,1757021437722,-1250.0,0.00024577,2]
[383598651,1757021437731,-9122.95363061,0.00024577,2]
[383598652,1757021437742,-1207.28658054,0.00024577,2]
[383598653,1757021437751,-156.54035492,0.00024577,2]
[383598654,1757021437761,-328.72,0.00024616,2]
[383598655,1757021437770,-151.0,0.00024662,2]
[383598656,1757021437781,-151.0,0.00024662,2]
[383598657,1757021437791,-151.0,0.00024662,2]
[383598658,1757021437800,-151.0,0.00024662,2]
[383598659,1757021437810,-151.0,0.00024662,2]
[383598660,1757021437819,-151.0,0.00024662,2]
[383598661,1757021437829,-151.0,0.00024662,2]
[383598662,1757021437838,-151.0,0.00024662,2]
[383598663,1757021437847,-151.0,0.00024662,2]
[383598664,1757021437857,-151.0,0.00024662,2]
[383598665,1757021437866,-151.0,0.00024662,2]
[383598666,1757021437876,-151.0,0.00024662,2]
[383598667,1757021437886,-151.0,0.00024662,2]
[383598668,1757021437895,-151.0,0.00024662,2]
[383598669,1757021437904,-151.0,0.00024662,2]
[383598670,1757021437914,-271.72364771,0.00024662,2]
[383598672,1757021437923,-167.16,0.00024667,2]
[383598674,1757021437932,-393.01226904,0.00024673,2]
[383598676,1757021437941,-500.0,0.00024673,2]
[383598678,1757021437951,-505.31612321,0.00024673,2]
[383598679,1757021437960,-4178.0,0.00024675,2]
[383598681,1757021437969,-1000.7626,0.00024676,2]
[383598683,1757021437979,-328.960886,0.00024676,2]
[383598684,1757021437988,-158.556191,0.00024676,2]
[383598686,1757021437997,-725.37,0.00024676,2]
[383598688,1757021438006,-407.854348,0.00024676,2]
[383598690,1757021438016,-160.977283,0.00024676,2]
[383598692,1757021438025,-173.432506,0.00024676,2]
[383598693,1757021438034,-858.682694,0.00024676,2]
[383598694,1757021438044,-400.0,0.00024676,2]
[383598695,1757021438053,-1200.53,0.00024676,2]
[383598696,1757021438062,-88.86819878,0.00024676,2]
[383598697,1757021438073,-557.88180122,0.00024676,2]
[383598698,1757021438082,-400.0,0.00024676,2]
[383598699,1757021438091,-400.0,0.00024676,2]
[383598700,1757021438101,-400.0,0.00024676,2]
[383598701,1757021438110,-401.31880451,0.00024676,2]
[383598702,1757021438120,-400.0,0.00024676,2]
[383598703,1757021438129,-400.0,0.00024676,2]
[383598704,1757021438138,-400.0,0.00024676,2]
[383598705,1757021438148,-400.0,0.00024676,2]
[383598706,1757021438158,-400.0,0.00024676,2]
[383598707,1757021438167,-66.66430222,0.00024676,2]
[383598708,1757021438179,-333.33569778,0.00024676,2]
[383598709,1757021438189,-400.0,0.00024676,2]
[383598710,1757021438198,-400.0,0.00024676,2]
[383598711,1757021438208,-400.0,0.00024676,2]
[383598712,1757021438217,-400.0,0.00024676,2]
[383598713,1757021438226,-400.0,0.00024676,2]
[383598714,1757021438236,-400.0,0.00024676,2]
[383598715,1757021438245,-75.41106222,0.00024676,2]
[383598716,1757021438256,-324.58893778,0.00024676,2]
[383598717,1757021438266,-400.0,0.00024676,2]
[383598718,1757021438275,-400.0,0.00024676,2]
[383598719,1757021438285,-400.0,0.00024676,2]
[383598720,1757021438294,-400.0,0.00024676,2]
[383598721,1757021438303,-400.0,0.00024676,2]
[383598722,1757021438312,-400.0,0.00024676,2]
[383598723,1757021438322,-400.0,0.00024676,2]
[383598724,1757021438331,-400.0,0.00024676,2]
[383598725,1757021438340,-379.31137722,0.00024676,2]
[383598726,1757021438352,-20.68862278,0.00024676,2]
[383598727,1757021438361,-400.0,0.00024676,2]
[383598728,1757021438371,-400.0,0.00024676,2]
[383598729,1757021438381,-400.0,0.00024676,2]
[383598730,1757021438390,-401.22932475,0.00024676,2]
[383598731,1757021438399,-400.0,0.00024676,2]
[383598732,1757021438409,-400.0,0.00024676,2]
[383598733,1757021438420,-400.0,0.00024676,2]
[383598734,1757021438430,-400.0,0.00024676,2]
[383598735,1757021438439,-400.0,0.00024676,2]
[383598736,1757021438449,-101.61836247,0.00024676,2]
[383598737,1757021438462,-298.38163753,0.00024676,2]
[383598738,1757021438471,-400.0,0.00024676,2]
[383598739,1757021438481,-400.0,0.00024676,2]
[383598740,1757021438491,-151.0,0.00024676,7]
[383598741,1757021438502,-400.0,0.00024676,2]
[383598742,1757021438511,-400.0,0.00024676,2]
[383598743,1757021438521,-345.34109847,0.00024676,2]
[383598744,1757021438532,-54.65890153,0.00024676,2]
[383598745,1757021438542,-400.0,0.00024676,2]
[383598746,1757021438551,-400.0,0.00024676,2]
[383598747,1757021438561,-400.0,0.00024676,2]
[383598748,1757021438571,-207.53907697,0.00024676,2]
[383598749,1757021438583,-329.70092303,0.00024676,2]
[383598750,1757021438592,-400.0,0.00024676,2]
[383598751,1757021438602,-400.0,0.00024676,2]
[383598752,1757021438611,-425.12,0.00024676,2]
[383598753,1757021438621,-400.0,0.00024676,2]
[383598754,1757021438630,-214.76,0.00024676,2]
[383598755,1757021438640,-400.0,0.00024676,2]
[383598756,1757021438649,-228.09429447,0.00024676,2]
[383598757,1757021438660,-171.90570553,0.00024676,2]
[383598758,1757021438670,-212.68,0.00024676,2]
[383598759,1757021438679,-400.0,0.00024676,2]
[383598760,1757021438688,-539.71,0.00024676,2]
[383598761,1757021438698,-400.0,0.00024676,2]
[383598762,1757021438707,-400.0,0.00024676,2]
[383598763,1757021438717,-400.0,0.00024676,2]
[383598764,1757021438727,-400.0,0.00024676,2]
[383598765,1757021438736,-218.23349447,0.00024676,2]
[383598766,1757021438747,-181.76650553,0.00024676,2]
[383598767,1757021438757,-400.0,0.00024676,2]
[383598768,1757021438766,-301.44966,0.00024676,7]
[383598769,1757021438775,-176.78477127,0.00024676,2]
[383598770,1757021438787,-223.21522873,0.00024676,2]
[383598771,1757021438796,-399.71877127,0.00024676,2]
[383598772,1757021438825,-0.28122873,0.00024676,2]
[383598773,1757021438835,-399.4,0.00024676,2]
[383598774,1757021438844,-887.18551484,0.00024676,2]
[383598775,1757021438855,-89.15448516,0.00024676,2]
[383598776,1757021438864,-400.0,0.00024676,2]
[383598777,1757021438874,-153.9948647,0.00024676,2]
[383598778,1757021438883,-400.0,0.00024676,2]
[383598779,1757021438893,-400.0,0.00024676,2]
[383598780,1757021438903,-400.0,0.00024676,2]
[383598781,1757021438912,-437.8,0.00024676,2]
[383598782,1757021438921,-400.0,0.00024676,2]
[383598783,1757021438931,-400.0,0.00024676,2]
[383598784,1757021438940,-400.0,0.00024676,2]
[383598785,1757021438950,-400.0,0.00024676,2]
[383598786,1757021438959,-400.0,0.00024676,2]
[383598787,1757021438968,-400.0,0.00024676,2]
[383598788,1757021438978,-154.94,0.00024676,2]
[383598789,1757021438987,-400.0,0.00024676,2]
[383598790,1757021438996,-176.19083264,0.00024676,2]
[383598791,1757021439006,-4.89216922,0.00024676,2]
[383598792,1757021439018,-224.22783078,0.00024676,2]
[383598793,1757021439028,-436.1,0.00024676,2]
[383598794,1757021439038,-400.0,0.00024676,2]
[383598795,1757021439047,-3010.21128815,0.00024677,3]
[383598796,1757021439058,-1749.49563885,0.00024677,2]
[383598797,1757021439070,-287.33488781,0.00024677,2]
[383598798,1757021439083,-925.82080177,0.00024677,2]
[383598799,1757021439096,-297.52310819,0.00024677,2]
[383598800,1757021439108,-2052.64284678,0.00024677,2]
[383598801,1757021439119,-848.01587504,0.00024677,2]
[383598802,1757021439130,-14765.9144371,0.00024677,2]
[383598803,1757021439141,-484.30291347,0.00024677,2]
[383598804,1757021439157,-4477.85887458,0.00024677,2]
[383598805,1757021439168,-797.31968855,0.00024677,2]
[383598806,1757021439180,-597.0,0.00024677,2]
[383598807,1757021439193,-1279.45527971,0.00024677,2]
[383598808,1757021439204,-3254.57,0.00024677,2]
[383598809,1757021439215,-685.02973532,0.00024677,2]
[383598810,1757021439226,-328.31959918,0.00024677,2]
[383598811,1757021439873,-400.0,0.00024676,2]
[383598812,1757021439883,-1174.30218451,0.00024677,2]
[383598813,1757021439894,-1959.44,0.00024677,2]
[383598814,1757021439937,-7878.8381512,0.00024677,2]
[383598815,1757021439948,-394.3719,0.00024677,2]
[383598816,1757021439959,-9063.70302662,0.00024677,2]
[383598817,1757021439991,-6658.4654679,0.00024677,2]
[383598818,1757021440157,-400.0,0.00024676,2]
[383598819,1757021440166,-178.51776381,0.00024677,2]
[383598820,1757021440214,-767.15099382,0.00024677,2]
[383598821,1757021440226,-3349.64285576,0.00024677,2]
[383598825,1757021442866,-400.0,0.00024676,2]
[383598826,1757021442876,-50.355517,0.00024676,2]
[383598827,1757021442887,-283.25,0.00024676,2]
[383598828,1757021442926,-361.534483,0.00024676,2]
[383598829,1757021442936,-400.0,0.00024676,2]
[383598830,1757021442945,-1329.54005171,0.00024677,2]
[383598831,1757021443037,-2260.4,0.00024677,2]
[383598846,1757021446289,-400.0,0.00024676,2]
[383598847,1757021446299,-50.355517,0.00024676,2]
[383598848,1757021729732,250.0,0.00015,2]
[383598849,1757021730827,300.0,0.00017,2]
[383598850,1757021789330,154.84,0.00013699,2]
[383598851,1757021851953,151.49,0.0001191,2]
[383598852,1757021852168,151.49,0.00012903,2]
[383598853,1757021852382,151.49,0.00013896,2]
[383598854,1757021852594,151.49,0.00014888,2]
[383598855,1757021852802,151.49,0.00015881,2]
[383598856,1757021853014,151.49,0.00016873,2]
[383598857,1757021853247,151.49,0.00017866,2]
[383598858,1757021853496,151.49,0.00018858,2]
[383598859,1757021853736,151.49,0.00019851,2]
[383598871,1757022631889,-151.49,0.00020843,2]
[383598877,1757022632403,-151.49,0.00021836,2]
[383598878,1757022632414,-289.91999999,0.000221,2]
[383598879,1757022632426,-197.07000001,0.000221,2]
[383598880,1757022632436,-500.0,0.00022658,2]
[383598881,1757022632446,-151.49,0.00022828,2]
[383598882,1757022632456,-498.0,0.00023068,2]
[383598883,1757022632466,-165.881788,0.00023111,2]
[383598884,1757022632476,-150.0,0.00023227,4]
[383598885,1757022632486,-150.0,0.00023227,4]
[383598886,1757022632496,-150.0,0.00023227,4]
[383598887,1757022632505,-261.68653542,0.00023227,4]
[383598888,1757022632515,-160.0,0.00023314,7]
[383598889,1757022632524,-197.23,0.00023726,2]
[383598890,1757022632534,-150.54,0.00023743,2]
[383598891,1757022632544,-936.43,0.00023782,2]
[383598892,1757022632553,-151.49,0.00023821,2]
[383598893,1757022632563,-168.0,0.00023831,2]
[383598894,1757022632572,-168.0,0.00023899,2]
[383598895,1757022632582,-1200.0,0.0002392,2]
[383598896,1757022632591,-3010.21128815,0.00023921,2]
[383598897,1757022632601,-300.0,0.00023988,2]
[383598898,1757022632611,-161.58,0.00023989,2]
[383598899,1757022632621,-300.0,0.00023995,2]
[383598900,1757022632630,-300.0,0.00023995,2]
[383598901,1757022632640,-486.99,0.00024,2]
[383598902,1757022632649,-807.40032275,0.00024009,2]
[383598903,1757022632659,-2222.0,0.00024073,2]
[383598904,1757022632668,-150.0,0.00024088,4]
[383598905,1757022632678,-168.0,0.00024102,2]
[383598906,1757022632688,-807.40032275,0.00024124,2]
[383598907,1757022632697,-409.65,0.0002441,2]
[383598908,1757022632706,-150.0,0.0002441,2]
[383598909,1757022632716,-541.14,0.0002441,2]
[383598910,1757022632726,-166.53,0.0002441,2]
[383598911,1757022632736,-174.25,0.0002441,2]
[383598912,1757022632745,-825.568798,0.00024517,2]
[383598913,1757022632755,-150.0,0.00024518,4]
[383598914,1757022632764,-621.74124988,0.00024518,2]
[383598915,1757022632784,-185.65907288,0.00024518,2]
[383598916,1757022632794,-2614.34092712,0.00024576,2]
[383598917,1757022632805,-256.904,0.00024576,2]
[383598918,1757022632821,-2048.64466579,0.00024576,2]
[383598919,1757022632832,-4298.95247866,0.00024576,2]
[383598920,1757022632847,-78.37411851,0.00024576,2]
[383598921,1757022632856,-156.54035492,0.00024576,2]
[383598922,1757022632866,-344.44905851,0.00024576,2]
[383598923,1757022632877,-197.10330018,0.00024576,2]
[383598924,1757022632887,-264.42832588,0.00024577,2]
[383598925,1757022632896,-150.0,0.000246,2]
[383598926,1757022632906,-425.0,0.000246,2]
[383598927,1757022632917,-2221.0,0.00024608,7]
[383598928,1757022632932,-197.23,0.00024616,2]
[383598929,1757022632943,-8731.82906302,0.00024648,2]
[383598930,1757022632954,-665.7745267,0.00024648,2]
[383598931,1757022632967,-4988.7,0.00024648,2]
[383598932,1757022632983,-623.36828468,0.00024648,2]
[383598933,1757022632996,-310.53751278,0.00024648,2]
[383598934,1757022633008,-435.75035105,0.00024648,2]
[383598935,1757022633024,-1573.48970762,0.00024648,2]
[383598936,1757022633036,-8250.83152854,0.00024648,2]
[383598937,1757022633046,-167.16,0.00024666,2]
[383598938,1757022633056,-167.16,0.00024666,2]
[383598939,1757022633066,-1947.86,0.00024666,2]
[383598940,1757022633075,-500.0,0.00024673,2]
[383598941,1757022633085,-500.0,0.00024673,2]
[383598942,1757022633095,-500.0,0.00024673,2]
[383598943,1757022633104,-500.4200175,0.00024673,2]
[383598944,1757022633115,-151.0,0.00024673,7]
[383598945,1757022633126,-208.87964825,0.00024676,3]
[383598946,1757022633136,-18674.46675575,0.00024676,3]
[383598947,1757022633149,-389.70354623,0.00024676,3]
[383598948,1757022633162,-490.24643896,0.00024676,3]
[383598949,1757022633174,-3639.02725584,0.00024676,3]
[383598950,1757022633190,-2920.21598027,0.00024676,3]
[383598951,1757022633202,-1487.95536,0.00024676,3]
[383598952,1757022633215,-3847.331684,0.00024676,3]
[383598953,1757022633226,-510.0,0.00024676,3]
[383598954,1757022633239,-539.32061941,0.00024676,3]
[383598955,1757022633751,-586.04436035,0.00024676,3]
[383598956,1757022636177,500.0,0.00019178,2]
[383598957,1757022637906,-40559.66034008,0.00024676,3]
[383598958,1757022637917,-514.64478986,0.00024676,3]
[383598959,1757022637931,-212.59699798,0.00024676,3]
[383598960,1757022637940,-1000.0,0.00024676,3]
[383598961,1757022637950,-1000.0,0.00024676,3]
[383598962,1757022637959,-1000.0,0.00024676,3]
[383598963,1757022637969,-1000.0,0.00024676,3]
[383598964,1757022637978,-1000.0,0.00024676,3]
[383598965,1757022637987,-1000.0,0.00024676,3]
[383598966,1757022637999,-1000.0,0.00024676,3]
[383598967,1757022638008,-1000.0,0.00024676,3]
[383598968,1757022638018,-1000.0,0.00024676,3]
[383598969,1757022638028,-1000.0,0.00024676,3]
[383598970,1757022638038,-1000.0,0.00024676,3]
[383598971,1757022638047,-1000.0,0.00024676,3]
[383598972,1757022638057,-400.0,0.00024676,2]
[383598973,1757022638067,-400.0,0.00024676,2]
[383598974,1757022638077,-400.0,0.00024676,2]
[383598975,1757022638087,-506.32,0.00024676,2]
[383598976,1757022638096,-400.0,0.00024676,2]
[383598977,1757022638106,-400.0,0.00024676,2]
[383598978,1757022638117,-400.0,0.00024676,2]
[383598979,1757022638127,-472.76,0.00024676,2]
[383598980,1757022638137,-400.0,0.00024676,2]
[383598981,1757022638147,-400.0,0.00024676,2]
[383598982,1757022638156,-400.0,0.00024676,2]
[383598983,1757022638166,-400.0,0.00024676,2]
[383598984,1757022638175,-400.0,0.00024676,2]
[383598985,1757022638186,-400.0,0.00024676,2]
[383598986,1757022638196,-400.0,0.00024676,2]
[383598987,1757022638205,-400.0,0.00024676,2]
[383598988,1757022638215,-199.57363575,0.00024676,2]
[383598989,1757022638224,-400.0,0.00024676,2]
[383598990,1757022638234,-400.0,0.00024676,2]
[383598991,1757022638243,-400.0,0.00024676,2]
[383598992,1757022638253,-400.0,0.00024676,2]
[383598993,1757022638263,-400.0,0.00024676,2]
[383598994,1757022638272,-400.0,0.00024676,2]
[383598995,1757022638282,-400.0,0.00024676,2]
[383598996,1757022638291,-400.0,0.00024676,2]
[383598998,1757022638302,-400.0,0.00024676,2]
[383599000,1757022638312,-400.0,0.00024676,2]
[383599002,1757022638321,-400.0,0.00024676,2]
[383599004,1757022638331,-446.48,0.00024676,2]
[383599006,1757022638340,-400.0,0.00024676,2]
[383599008,1757022638350,-400.0,0.00024676,2]
[383599010,1757022638360,-400.0,0.00024676,2]
[383599012,1757022638370,-400.0,0.00024676,2]
[383599014,1757022638379,-500.0,0.00024676,2]
[383599016,1757022638388,-400.0,0.00024676,2]
[383599018,1757022638398,-400.0,0.00024676,2]
[383599020,1757022638407,-400.0,0.00024676,2]
[383599022,1757022638417,-400.0,0.00024676,2]
[383599024,1757022638426,-400.0,0.00024676,2]
[383599026,1757022638435,-400.0,0.00024676,2]
[383599028,1757022638445,-400.0,0.00024676,2]
[383599030,1757022638454,-400.0,0.00024676,2]
[383599032,1757022638464,-400.0,0.00024676,2]
[383599035,1757022638473,-400.0,0.00024676,2]
[383599038,1757022638482,-260.76183199,0.00024676,2]
[383599041,1757022638492,-400.0,0.00024676,2]
[383599043,1757022638501,-400.0,0.00024676,2]
[383599045,1757022638510,-400.0,0.00024676,2]
[383599047,1757022638519,-400.0,0.00024676,2]
[383599049,1757022638528,-400.0,0.00024676,2]
[383599051,1757022638538,-400.0,0.00024676,2]
[383599053,1757022638547,-400.0,0.00024676,2]
[383599055,1757022638557,-400.0,0.00024676,2]
[383599057,1757022638566,-400.0,0.00024676,2]
[383599059,1757022638575,-400.0,0.00024676,2]
[383599061,1757022638585,-400.0,0.00024676,2]
[383599063,1757022638594,-151.0,0.00024676,7]
[383599065,1757022638603,-151.0,0.00024676,7]
[383599066,1757022638612,-400.0,0.00024676,2]
[383599068,1757022638621,-400.0,0.00024676,2]
[383599071,1757022638631,-400.0,0.00024676,2]
[383599073,1757022638640,-400.0,0.00024676,2]
[383599075,1757022638650,-451.08,0.00024676,2]
[383599077,1757022638659,-400.0,0.00024676,2]
[383599079,1757022638668,-400.0,0.00024676,2]
[383599081,1757022638679,-400.0,0.00024676,2]
[383599083,1757022638688,-400.0,0.00024676,2]
[383599085,1757022638697,-400.0,0.00024676,2]
[383599086,1757022638707,-205.15,0.00024676,2]
[383599088,1757022638717,-400.0,0.00024676,2]
[383599090,1757022638726,-326.04373484,0.00024676,2]
[383599093,1757022638736,-400.0,0.00024676,2]
[383599094,1757022638746,-400.0,0.00024676,2]
[383599096,1757022638755,-400.0,0.00024676,2]
[383599098,1757022638764,-400.0,0.00024676,2]
[383599100,1757022638774,-400.0,0.00024676,2]
[383599102,1757022638784,-400.0,0.00024676,2]
[383599105,1757022638794,-400.0,0.00024676,2]
[383599107,1757022638804,-400.0,0.00024676,2]
[383599109,1757022638813,-400.0,0.00024676,2]
[383599110,1757022638823,-400.0,0.00024676,2]
[383599112,1757022638833,-400.0,0.00024676,2]
[383599115,1757022638842,-400.0,0.00024676,2]
[383599116,1757022638851,-400.0,0.00024676,2]
[383599118,1757022638860,-400.0,0.00024676,2]
[383599121,1757022638870,-400.0,0.00024676,2]
[383599123,1757022638880,-400.0,0.00024676,2]
[383599124,1757022638889,-400.0,0.00024676,2]
[383599126,1757022638898,-400.0,0.00024676,2]
[383599129,1757022638909,-400.0,0.00024676,2]
[383599131,1757022638922,-400.0,0.00024676,2]
[383599133,1757022638935,-400.0,0.00024676,2]
[383599135,1757022638944,-151.0,0.00024676,7]
[383599137,1757022638954,-151.0,0.00024676,7]
[383599139,1757022638963,-400.0,0.00024676,2]
[383599140,1757022638976,-400.0,0.00024676,2]
[383599143,1757022638986,-400.0,0.00024676,2]
[383599144,1757022638995,-400.0,0.00024676,2]
[383599146,1757022639004,-400.0,0.00024676,2]
[383599147,1757022639014,-400.0,0.00024676,2]
[383599149,1757022639023,-164.2164305,0.00024676,2]
[383599151,1757022639033,-400.0,0.00024676,2]
[383599153,1757022639043,-365.85335788,0.00024676,2]
[383599155,1757022639052,-400.0,0.00024676,2]
[383599157,1757022639061,-400.0,0.00024676,2]
[383599159,1757022639070,-400.0,0.00024676,2]
[383599161,1757022639080,-400.0,0.00024676,2]
[383599163,1757022639090,-400.0,0.00024676,2]
[383599165,1757022639099,-400.0,0.00024676,2]
[383599167,1757022639109,-400.0,0.00024676,2]
[383599169,1757022639118,-400.0,0.00024676,2]
[383599171,1757022639128,-390.29891825,0.00024676,2]
[383599173,1757022639137,-500.0,0.00024676,2]
[383599175,1757022639146,-400.0,0.00024676,2]
[383599177,1757022639156,-400.0,0.00024676,2]
[383599179,1757022639165,-400.0,0.00024676,2]
[383599181,1757022639175,-400.0,0.00024676,2]
[383599183,1757022639184,-400.0,0.00024676,2]
[383599185,1757022639193,-400.0,0.00024676,2]
[383599187,1757022639203,-400.0,0.00024676,2]
[383599189,1757022639212,-400.0,0.00024676,2]
[383599191,1757022639221,-400.0,0.00024676,2]
[383599193,1757022639230,-400.0,0.00024676,2]
[383599195,1757022639239,-400.0,0.00024676,2]
[383599197,1757022639249,-401.97597852,0.00024676,2]
[383599199,1757022639259,-400.0,0.00024676,2]
[383599201,1757022639268,-400.0,0.00024676,2]
[383599203,1757022639278,-423.33858885,0.00024676,2]
[383599204,1757022639288,-400.0,0.00024676,2]
[383599205,1757022639298,-400.0,0.00024676,2]
[383599206,1757022639307,-400.0,0.00024676,2]
[383599207,1757022639316,-400.0,0.00024676,2]
[383599208,1757022639326,-400.0,0.00024676,2]
[383599209,1757022639335,-400.0,0.00024676,2]
[383599210,1757022639345,-400.0,0.00024676,2]
[383599211,1757022639354,-400.0,0.00024676,2]
[383599212,1757022639364,-400.0,0.00024676,2]
[383599213,1757022639374,-400.0,0.00024676,2]
[383599214,1757022639384,-400.0,0.00024676,2]
[383599215,1757022639394,-417.49354769,0.00024676,2]
[383599216,1757022639404,-400.0,0.00024676,2]
[383599217,1757022639413,-400.0,0.00024676,2]
[383599218,1757022639423,-400.0,0.00024676,2]
[383599219,1757022639432,-400.0,0.00024676,2]
[383599220,1757022639442,-400.0,0.00024676,2]
[383599222,1757022639452,-400.0,0.00024676,2]
[383599224,1757022639462,-400.0,0.00024676,2]
[383599226,1757022639471,-400.0,0.00024676,2]
[383599228,1757022639480,-400.0,0.00024676,2]
[383599230,1757022639490,-400.0,0.00024676,2]
[383599231,1757022639499,-343.31011737,0.00024676,2]
[383599234,1757022639508,-400.0,0.00024676,2]
[383599236,1757022639518,-400.0,0.00024676,2]
[383599237,1757022639527,-400.0,0.00024676,2]
[383599240,1757022639536,-400.0,0.00024676,2]
[383599241,1757022639546,-400.0,0.00024676,2]
[383599243,1757022639556,-400.0,0.00024676,2]
[383599246,1757022639565,-400.0,0.00024676,2]
[383599248,1757022639574,-400.0,0.00024676,2]
[383599250,1757022639584,-400.0,0.00024676,2]
[383599251,1757022639593,-400.0,0.00024676,2]
[383599254,1757022639603,-400.0,0.00024676,2]